fUSD/lending_fUSD_20260628
["ID","MTS","AMOUNT","RATE_DAILY","PERIOD"]
[426576614,1782621032000,-500.0,0.00029779,2]
[426576587,1782621032000,-150.0,0.00028397,14]
[426576618,1782621032000,-15235.65754197,0.0002978,2]
[426576598,1782621032000,-239.61187174,0.00028884,14]
[426576586,1782621032000,-6449.15252389,0.00028299,2]
[426576564,1782621032000,-452.436851,0.0002709,2]
[426576563,1782621032000,-428.044673,0.0002709,2]
[426576569,1782621032000,-166.14,0.00027298,2]
[426576579,1782621032000,-157.00194834,0.00028164,2]
[426576583,1782621032000,-1361.0,0.00028181,2]
[426576571,1782621032000,-500.0,0.000275,7]
[426576581,1782621032000,-704.26,0.00028171,10]
[426576570,1782621032000,-298.5,0.00027391,2]
[426576573,1782621032000,-214.02566517,0.00027746,7]
[426576572,1782621032000,-273.27,0.00027646,2]
[426576568,1782621032000,-447.87,0.00027276,2]
[426576575,1782621032000,-428.05,0.0002788,2]
[426576577,1782621032000,-165.61,0.00027993,2]
[426576597,1782621032000,-4237.0,0.000288,10]
[426576599,1782621032000,-157.00194834,0.00028986,2]
[426576592,1782621032000,-158.0,0.00028662,30]
[426576596,1782621032000,-157.00194834,0.00028712,2]
[426576594,1782621032000,-156.0,0.00028662,30]
[426576590,1782621032000,-157.00194834,0.00028438,2]
[426576589,1782621032000,-157.83058977,0.00028397,14]
[426576595,1782621032000,-154.0,0.00028662,30]
[426576584,1782621032000,-1277.0,0.00028181,2]
[426576582,1782621032000,-282.0,0.00028181,2]
[426576630,1782621037000,-850.06348174,0.00025233,2]
[426576631,1782621037000,-13431.07560161,0.00025233,2]
[426576632,1782621037000,-7632.27842745,0.00025233,2]
[426576633,1782621037000,-3575.518,0.00028181,2]
[426576634,1782621037000,-150.0,0.00028921,30]
[426576636,1782621037000,-586.89,0.0002977,10]
[426576638,1782621037000,-5951.02375414,0.0002978,2]
[426576637,1782621037000,-500.0,0.00029779,2]
[426576635,1782621037000,-154.0,0.00029662,30]
[426576639,1782621038000,-2446.37758397,0.0002978,2]
[426576671,1782621039000,-175233.2408489,0.0002978,2]
[426576673,1782621039000,-38356.361213,0.0002978,2]
[426576675,1782621039000,-157.00194834,0.00029808,2]
[426576674,1782621039000,-400.0,0.000298,10]
[426576679,1782621039000,-3112.12718363,0.000299,2]
[426576670,1782621039000,-52727.92435596,0.0002978,2]
[426576677,1782621039000,-287.61332065,0.00029878,2]
[426576676,1782621039000,-200.0,0.00029859,2]
[426576678,1782621039000,-5013.43723339,0.00029895,2]
[426576680,1782621039000,-600.0,0.000299,10]
[426576672,1782621039000,-13631.1330992,0.0002978,2]
[426576688,1782621039000,-500.0,0.00030099,2]
[426576682,1782621039000,-5000.0,0.0003,7]
[426576692,1782621039000,-500.0,0.00030099,2]
[426576690,1782621039000,-500.0,0.00030099,2]
[426576691,1782621039000,-500.0,0.00030099,2]
[426576687,1782621039000,-500.0,0.00030099,2]
[426576685,1782621039000,-182.8145548,0.0003,31]
[426576684,1782621039000,-246.49912974,0.0003,2]
[426576683,1782621039000,-14999.99,0.0003,2]
[426576686,1782621039000,-157.00194834,0.00030082,2]
[426576689,1782621039000,-500.0,0.00030099,2]
[426576681,1782621039000,-6356.0,0.00029952,10]
[426576696,1782621040000,-757.40572359,0.000301,7]
[426576695,1782621040000,-7342.05887643,0.000301,7]
[426576694,1782621040000,-961593.43926751,0.000301,7]
[426576693,1782621040000,-1194.0,0.000301,5]
[426576706,1782621046000,-155.57501254,0.00022,2]
[426576704,1782621046000,-154.0,0.0002,2]
[426576705,1782621046000,-154.0,0.00021,2]
[426576708,1782621046000,-135.16935387,0.000301,7]
[426576707,1782621046000,-48.42498746,0.000301,7]
[426576713,1782621048000,-489.07,0.0003009,10]
[426576714,1782621048000,-2167.42288951,0.000301,7]
[426576712,1782621048000,-160.0,0.00029,2]
[426576715,1782621060000,151.84176383,0.00037324,120]
[426576719,1782621183000,600.0,0.00027231,120]
[426576718,1782621183000,600.0,0.00027221,120]
[426576717,1782621183000,600.0,0.00029943,120]
[426576716,1782621183000,339.16730882,0.00029943,120]
[426576720,1782621184000,177.960468,0.00027231,120]
[426576721,1782621188000,166.709282,7.945e-05,2]
[426576723,1782621258000,372.9088,0.0002998,120]
[426576724,1782621313000,436296.4822,0.0002902,120]
[426576725,1782621906000,4171.26,0.00037327,120]
[426576727,1782621906000,4171.26,0.00037327,120]
[426576726,1782621906000,4171.26,0.00037327,120]
[426576730,1782621907000,4171.26,0.00037327,120]
[426576729,1782621907000,4171.26,0.00037327,120]
[426576728,1782621907000,4171.26,0.00037327,120]
[426576733,1782621908000,4171.26,0.00037327,120]
[426576732,1782621908000,4171.26,0.00037327,120]
[426576731,1782621908000,4171.26,0.00037327,120]
[426576734,1782621909000,4171.26,0.00037327,120]
[426576735,1782621909000,4171.26,0.00037327,120]
[426576736,1782621909000,4171.26,0.00037327,120]
[426576737,1782621909000,4171.26,0.00037327,120]
[426576740,1782621910000,4171.26,0.00037327,120]
[426576738,1782621910000,4171.26,0.00037327,120]
[426576739,1782621910000,4171.26,0.00037327,120]
[426576742,1782621911000,4171.26,0.00037327,120]
[426576741,1782621911000,4171.26,0.00037327,120]
[426576746,1782621912000,4171.26,0.00037327,120]
[426576745,1782621912000,4171.26,0.00037327,120]
[426576744,1782621912000,4171.26,0.00037327,120]
[426576743,1782621912000,4171.26,0.00037327,120]
[426576748,1782621913000,4171.34794798,0.00037327,120]
[426576747,1782621913000,4171.26,0.00037327,120]
[426576749,1782621936000,375.73083182,0.00037327,120]
[426576750,1782621952000,-275.99397895,0.000178,2]
[426576771,1782622028000,-166.69,0.00023771,2]
[426576773,1782622028000,-88.95769913,0.00024558,2]
[426576753,1782622028000,-250.0,0.0001785,2]
[426576754,1782622028000,-150.0,0.0001785,2]
[426576755,1782622028000,-250.0,0.00017935,2]
[426576757,1782622028000,-180.72174093,0.00017978,2]
[426576756,1782622028000,-150.0,0.00017977,2]
[426576760,1782622028000,-150.0,0.00018333,2]
[426576758,1782622028000,-216.54711319,0.00018026,2]
[426576759,1782622028000,-150.0,0.00018155,2]
[426576762,1782622028000,-150.0,0.00018689,2]
[426576752,1782622028000,-153.52363748,0.000178,2]
[426576764,1782622028000,-838.88250916,0.00020946,2]
[426576763,1782622028000,-250.0,0.0001958,2]
[426576765,1782622028000,-191.24236755,0.00022771,2]
[426576767,1782622028000,-912.05,0.00023473,2]
[426576766,1782622028000,-199.5,0.0002285,2]
[426576768,1782622028000,-241.78273178,0.00023628,2]
[426576769,1782622028000,-431.17014014,0.00023637,2]
[426576772,1782622028000,-200.0,0.00024001,2]
[426576770,1782622028000,-563.64327529,0.00023658,2]
[426576761,1782622028000,-150.0,0.00018511,2]
[426576774,1782622030000,-930.2374958,0.0001775,2]
[426576776,1782622030000,-218.75814337,0.00024558,2]
[426576778,1782622030000,-151.0,0.00024558,2]
[426576777,1782622030000,-150.0,0.00024558,2]
[426576780,1782622030000,-300.0,0.00024627,2]
[426576775,1782622030000,-61.24230087,0.00024558,2]
[426576781,1782622030000,-156.52633102,0.00024628,2]
[426576782,1782622030000,-156.52633102,0.00024628,2]
[426576783,1782622030000,-156.52633102,0.00024628,2]
[426576785,1782622030000,-78.51154992,0.00024637,2]
[426576784,1782622030000,-156.52633102,0.00024628,2]
[426576779,1782622030000,-151.0,0.00024558,2]
[426576786,1782622172000,-158.63374832,0.00024173,2]
[426576788,1782622173000,-216.54711319,0.00024173,2]
[426576792,1782622173000,-250.0,0.00024557,2]
[426576787,1782622173000,-841.36625168,0.00024173,2]
[426576789,1782622173000,-5282.42,0.00024174,2]
[426576791,1782622173000,-250.0,0.00024405,2]
[426576793,1782622173000,-2048.72994664,0.00024637,2]
[426576790,1782622173000,-180.18655649,0.00024174,2]
[426576805,1782622231000,-399.0,0.00024658,2]
[426576797,1782622231000,-150.0,0.00024637,2]
[426576800,1782622231000,-6125.68684165,0.00024637,2]
[426576798,1782622231000,-151.0,0.00024637,2]
[426576796,1782622231000,-152.0,0.00024637,2]
[426576799,1782622231000,-250.0,0.00024637,2]
[426576802,1782622231000,-151.0,0.00024657,2]
[426576801,1782622231000,-1000.0,0.00024657,2]
[426576803,1782622231000,-1141.0,0.00024658,2]
[426576804,1782622231000,-412.0,0.00024658,2]
[426576806,1782622231000,-408.0,0.00024658,2]
[426576807,1782622231000,-403.0,0.00024658,2]
[426576815,1782622231000,-150.99,0.00024659,2]
[426576811,1782622231000,-119.63413497,0.00024658,2]
[426576809,1782622231000,-407.0,0.00024658,2]
[426576812,1782622231000,-288.36586503,0.00024658,2]
[426576810,1782622231000,-412.0,0.00024658,2]
[426576814,1782622231000,-9999.99,0.00024659,2]
[426576813,1782622231000,-410.0,0.00024658,2]
[426576817,1782622231000,-341.83,0.0002466,2]
[426576808,1782622231000,-410.0,0.00024658,2]
[426576816,1782622231000,-400.0,0.00024659,2]
[426576819,1782622231000,-9999.99,0.0002466,2]
[426576818,1782622231000,-9999.99,0.0002466,2]
[426576838,1782622232000,-500.0,0.00026903,2]
[426576850,1782622232000,-500.0,0.00026903,2]
[426576837,1782622232000,-645.7913946,0.00026903,2]
[426576839,1782622232000,-500.0,0.00026903,2]
[426576840,1782622232000,-500.0,0.00026903,2]
[426576842,1782622232000,-500.0,0.00026903,2]
[426576845,1782622232000,-500.0,0.00026903,2]
[426576844,1782622232000,-500.0,0.00026903,2]
[426576843,1782622232000,-208.43131117,0.00026903,2]
[426576847,1782622232000,-500.0,0.00026903,2]
[426576848,1782622232000,-500.0,0.00026903,2]
[426576836,1782622232000,-250.3399013,0.00026903,2]
[426576846,1782622232000,-500.0,0.00026903,2]
[426576841,1782622232000,-500.0,0.00026903,2]
[426576835,1782622232000,-157.12953623,0.00026903,2]
[426576829,1782622232000,-272.97579043,0.00025614,14]
[426576833,1782622232000,-250.0,0.00026591,2]
[426576830,1782622232000,-455.92,0.000257,2]
[426576832,1782622232000,-455.92,0.00026327,2]
[426576831,1782622232000,-200.0,0.00025999,2]
[426576827,1782622232000,-405.0,0.00025228,2]
[426576828,1782622232000,-5000.0,0.00025267,2]
[426576826,1782622232000,-455.92,0.00025073,2]
[426576824,1782622232000,-403.0,0.00024852,2]
[426576825,1782622232000,-1000.0,0.00024891,2]
[426576822,1782622232000,-405.0,0.00024676,2]
[426576823,1782622232000,-160.0,0.00024684,2]
[426576820,1782622232000,-413.0,0.0002466,2]
[426576821,1782622232000,-403.0,0.00024664,2]
[426576834,1782622232000,-720.38742983,0.00026614,14]
[426576849,1782622232000,-500.0,0.00026903,2]
[426576851,1782622232000,-150.15283085,0.00026903,2]
[426576855,1782622232000,-21613.42429133,0.00026904,2]
[426576897,1782622232000,-1822.0,0.00027252,2]
[426576896,1782622232000,-1338.17052837,0.00027245,2]
[426576894,1782622232000,-1000.0,0.0002724,2]
[426576895,1782622232000,-454.82947163,0.00027245,2]
[426576892,1782622232000,-413.17745295,0.00027226,2]
[426576893,1782622232000,-151.0,0.00027238,2]
[426576890,1782622232000,-471.38621005,0.00027226,2]
[426576891,1782622232000,-199.13725825,0.00027226,2]
[426576889,1782622232000,-350.0,0.00027226,2]
[426576888,1782622232000,-500.0,0.00027226,2]
[426576886,1782622232000,-259.91896649,0.00027225,2]
[426576884,1782622232000,-150.0,0.00027221,2]
[426576885,1782622232000,-150.0,0.00027221,2]
[426576883,1782622232000,-151.0,0.0002716,2]
[426576882,1782622232000,-578.50804394,0.00027149,2]
[426576887,1782622232000,-444.61378995,0.00027226,2]
[426576877,1782622232000,-250.0,0.000271,2]
[426576852,1782622232000,-150.0,0.00026903,2]
[426576853,1782622232000,-72134.12203017,0.00026904,2]
[426576881,1782622232000,-2083.29195606,0.00027149,2]
[426576867,1782622232000,-503.79933474,0.00027038,2]
[426576859,1782622232000,-190.87932965,0.00026904,2]
[426576863,1782622232000,-455.92,0.00026954,2]
[426576861,1782622232000,-23033.51515487,0.00026908,2]
[426576857,1782622232000,-3689.0236785,0.00026904,2]
[426576869,1782622232000,-151.0,0.00027038,2]
[426576879,1782622232000,-500.0,0.00027121,2]
[426576871,1782622232000,-397.0,0.00027038,2]
[426576873,1782622232000,-407.0,0.00027038,2]
[426576875,1782622232000,-401.0,0.00027038,2]
[426576865,1782622232000,-1431.72538811,0.00027038,2]
[426576908,1782622233000,-379.17046858,0.00027581,2]
[426576907,1782622233000,-76.74953142,0.00027581,2]
[426576905,1782622233000,-500.0,0.000275,7]
[426576902,1782622233000,-1784.0,0.00027461,2]
[426576900,1782622233000,-505.38,0.00027397,10]
[426576901,1782622233000,-421.15,0.00027397,10]
[426576899,1782622233000,-1768.0,0.00027365,2]
[426576898,1782622233000,-153.0,0.000273,15]
[426576904,1782622233000,-1795.0,0.00027496,2]
[426576903,1782622233000,-285.05513885,0.00027477,2]
[426576906,1782622233000,-282.40448498,0.00027579,7]
[426576909,1782622233000,-1270.84881648,0.00027614,14]
[426576921,1782622233000,-915.00369035,0.00028364,7]
[426576910,1782622233000,-150.0,0.00027748,2]
[426576918,1782622233000,-160.0,0.00028229,2]
[426576917,1782622233000,-216.0,0.00028221,2]
[426576919,1782622233000,-500.0,0.00028363,2]
[426576915,1782622233000,-466.871,0.00028221,2]
[426576920,1782622233000,-500.0,0.00028363,2]
[426576913,1782622233000,-58.39269035,0.00028221,2]
[426576912,1782622233000,-249.0,0.0002785,30]
[426576914,1782622233000,-3517.12530965,0.00028221,2]
[426576911,1782622233000,-428.07,0.00027797,2]
[426576916,1782622233000,-225.0,0.00028221,2]
[426576962,1782622238000,-152.0,0.00024637,2]
[426576998,1782622238000,-153.0,0.00028664,30]
[426576993,1782622238000,-162.0,0.00028664,30]
[426576999,1782622238000,-158.99933998,0.00028664,30]
[426577004,1782622238000,-201.15667359,0.00028973,2]
[426577009,1782622238000,-279.37980995,0.00029119,2]
[426577002,1782622238000,-500.0,0.00028871,17]
[426577003,1782622238000,-529.0,0.00028883,2]
[426577006,1782622238000,-500.0,0.000291,7]
[426577008,1782622238000,-500.0,0.00029119,2]
[426576997,1782622238000,-158.0,0.00028664,30]
[426577010,1782622238000,-391.24867533,0.00029119,2]
[426577005,1782622238000,-464.92284466,0.00029054,7]
[426577007,1782622238000,-157.57173603,0.00029102,2]
[426576989,1782622238000,-161.0,0.00028664,30]
[426577000,1782622238000,-150.0,0.00028767,2]
[426576994,1782622238000,-153.0,0.00028664,30]
[426576991,1782622238000,-156.0,0.00028664,30]
[426576990,1782622238000,-158.0,0.00028664,30]
[426576992,1782622238000,-154.0,0.00028664,30]
[426576987,1782622238000,-2572.2675,0.00028614,14]
[426576988,1782622238000,-154.59197274,0.00028664,30]
[426576984,1782622238000,-4367.41630965,0.00028364,7]
[426576985,1782622238000,-157.57173603,0.00028554,2]
[426576986,1782622238000,-1901.11382497,0.00028614,14]
[426576983,1782622238000,-4510.336,0.00028221,2]
[426576964,1782622238000,-1106.0,0.00028221,2]
[426576960,1782622238000,-151.0,0.00018,2]
[426576995,1782622238000,-168.0,0.00028664,30]
[426577013,1782622238000,-500.0,0.00029119,2]
[426576996,1782622238000,-160.0,0.00028664,30]
[426577011,1782622238000,-500.0,0.00029119,2]
[426577014,1782622238000,-468.19463967,0.00029119,2]
[426577043,1782622238000,-3061.84949362,0.0002988,2]
[426577042,1782622238000,-547.4565743,0.0002988,2]
[426577039,1782622238000,-500.0,0.00029879,2]
[426577040,1782622238000,-500.0,0.00029879,2]
[426577041,1782622238000,-16287.86656162,0.0002988,2]
[426577038,1782622238000,-1261.84361997,0.00029879,2]
[426577037,1782622238000,-13431.07560161,0.00029879,2]
[426577034,1782622238000,-151.0,0.00029877,7]
[426577036,1782622238000,-5813.78254537,0.00029879,2]
[426577035,1782622238000,-151.0,0.00029878,7]
[426577033,1782622238000,-350.95,0.0002987,10]
[426577029,1782622238000,-200.0,0.000297,10]
[426577032,1782622238000,-200.0,0.00029859,2]
[426577030,1782622238000,-4370.54802845,0.0002978,2]
[426577001,1782622238000,-157.57173603,0.00028828,2]
[426577028,1782622238000,-153.0,0.00029664,30]
[426577031,1782622238000,-400.0,0.000298,10]
[426577012,1782622238000,-500.0,0.00029119,2]
[426577018,1782622238000,-32627.0,0.0002912,20]
[426577017,1782622238000,-500.0,0.00029119,2]
[426577016,1782622238000,-500.0,0.00029119,2]
[426577020,1782622238000,-173.81,0.00029273,2]
[426577019,1782622238000,-423.60672749,0.00029201,7]
[426577015,1782622238000,-252.24611621,0.00029119,2]
[426577024,1782622238000,-157.57173603,0.0002965,2]
[426577023,1782622238000,-1602.527,0.000296,23]
[426577026,1782622238000,-156.0,0.00029664,30]
[426577022,1782622238000,-169.001,0.000296,23]
[426577025,1782622238000,-158.0,0.00029664,30]
[426577021,1782622238000,-157.57173603,0.00029376,2]
[426577027,1782622238000,-154.0,0.00029664,30]
[426577053,1782622239000,-3496.5,0.0002988,2]
[426577068,1782622240000,-157.57173603,0.00029924,2]
[426577069,1782622240000,-3543.7387058,0.00029966,2]
[426577070,1782622240000,-8878.4241721,0.00029966,2]
[426577071,1782622240000,-500.0,0.00029999,2]
[426577077,1782622240000,-12499.99,0.0003,2]
[426577073,1782622240000,-577.07,0.0003,2]
[426577075,1782622240000,-12499.99,0.0003,2]
[426577066,1782622240000,-210.0,0.000299,2]
[426577072,1782622240000,-802.0,0.0003,5]
[426577067,1782622240000,-182.8145548,0.000299,31]
[426577059,1782622240000,-2518.6937761,0.0002988,2]
[426577064,1782622240000,-16547.3084638,0.00029893,2]
[426577062,1782622240000,-57575.4981393,0.0002988,2]
[426577065,1782622240000,-600.0,0.000299,10]
[426577061,1782622240000,-11252.3698608,0.0002988,2]
[426577060,1782622240000,-142409.8834724,0.0002988,2]
[426577057,1782622240000,-34807.7502406,0.0002988,2]
[426577076,1782622240000,-22500.0,0.0003,2]
[426577058,1782622240000,-10708.5777409,0.0002988,2]
[426577056,1782622240000,-9399.4985106,0.0002988,2]
[426577055,1782622240000,-229364.04379584,0.0002988,2]
[426577054,1782622240000,-899.59215972,0.0002988,2]
[426577063,1782622240000,-11800.7906019,0.0002988,2]
[426577078,1782622240000,-2499.99,0.0003,2]
[426577074,1782622240000,-9999.99,0.0003,2]
[426577081,1782622240000,-9999.99,0.0003,2]
[426577102,1782622240000,-500.0,0.00030099,2]
[426577101,1782622240000,-500.0,0.00030099,2]
[426577100,1782622240000,-500.0,0.00030099,2]
[426577099,1782622240000,-151.0,0.00030097,7]
[426577103,1782622240000,-1004.0,0.000301,5]
[426577098,1782622240000,-154.2820049,0.00030097,7]
[426577104,1782622240000,-383209.96484189,0.000301,7]
[426577097,1782622240000,-198.0,0.00030097,2]
[426577096,1782622240000,-32627.0,0.0003008,20]
[426577095,1782622240000,-500.0,0.00030069,2]
[426577093,1782622240000,-246.49912974,0.0003,2]
[426577079,1782622240000,-22499.98,0.0003,2]
[426577094,1782622240000,-794.0,0.00030038,2]
[426577090,1782622240000,-12500.0,0.0003,2]
[426577088,1782622240000,-25000.0,0.0003,2]
[426577089,1782622240000,-14999.98,0.0003,2]
[426577091,1782622240000,-15000.0,0.0003,2]
[426577092,1782622240000,-5000.0,0.0003,7]
[426577085,1782622240000,-22500.0,0.0003,2]
[426577086,1782622240000,-2500.0,0.0003,2]
[426577082,1782622240000,-24999.99,0.0003,2]
[426577083,1782622240000,-14999.99,0.0003,2]
[426577084,1782622240000,-15000.0,0.0003,2]
[426577080,1782622240000,-12499.99,0.0003,2]
[426577087,1782622240000,-10000.0,0.0003,2]
[426577107,1782622242000,-1979.85967764,0.000301,7]
[426577106,1782622242000,-151.0,0.00018,2]
[426577111,1782622242000,-383.04433672,0.000301,7]
[426577109,1782622242000,-1596.13827094,0.000301,7]
[426577110,1782622242000,-1264.86252277,0.000301,7]
[426577108,1782622242000,-3575.97729233,0.000301,7]
[426577117,1782622243000,-918.74,0.000301,7]
[426577116,1782622243000,-5895.4066309,0.000301,7]
[426577113,1782622243000,-1348.29978629,0.000301,7]
[426577115,1782622243000,-519.45202042,0.000301,7]
[426577114,1782622243000,-13251.85979635,0.000301,7]
[426577112,1782622243000,-93.67863173,0.000301,7]
[426577134,1782622246000,-1386.51369162,0.00030205,2]
[426577129,1782622246000,-1133.33,0.00030137,30]
[426577130,1782622246000,-340.4151997,0.00030197,7]
[426577128,1782622246000,-22500.0,0.00030125,2]
[426577131,1782622246000,-340.4151997,0.00030197,7]
[426577132,1782622246000,-157.57173603,0.00030198,2]
[426577127,1782622246000,-22500.0,0.00030125,2]
[426577125,1782622246000,-14983.17,0.000301,2]
[426577126,1782622246000,-259.193844,0.000301,7]
[426577124,1782622246000,-150.0,0.000301,2]
[426577122,1782622246000,-73494.26920458,0.000301,7]
[426577123,1782622246000,-671.68,0.000301,7]
[426577121,1782622246000,-1907.65264137,0.000301,7]
[426577120,1782622246000,-1344.16589169,0.000301,7]
[426577119,1782622246000,-4016.59258537,0.000301,7]
[426577133,1782622246000,-342.809999,0.000302,11]
[426577136,1782622246000,-25000.0,0.0003025,2]
[426577137,1782622246000,-22500.0,0.0003025,2]
[426577135,1782622246000,-2500.0,0.0003025,2]
[426577152,1782622246000,-153.0,0.00030664,30]
[426577151,1782622246000,-154.0,0.00030664,30]
[426577150,1782622246000,-156.0,0.00030664,30]
[426577148,1782622246000,-235.83304836,0.00030656,4]
[426577149,1782622246000,-158.0,0.00030664,30]
[426577147,1782622246000,-1133.33,0.00030616,2]
[426577146,1782622246000,-8870.45,0.000305,2]
[426577142,1782622246000,-4370.54802841,0.00030393,2]
[426577145,1782622246000,-157.57173603,0.00030472,2]
[426577143,1782622246000,-497.0,0.00030403,2]
[426577144,1782622246000,-1691.89797989,0.00030411,2]
[426577141,1782622246000,-22500.0,0.00030375,2]
[426577139,1782622246000,-966.58073159,0.00030325,2]
[426577138,1782622246000,-3935.0,0.00030319,10]
[426577140,1782622246000,-10000.0,0.00030333,2]
[426577214,1782622247000,-1351.116938,0.00031507,7]
[426577217,1782622247000,-151.0,0.00031507,7]
[426577215,1782622247000,-1351.116938,0.00031507,7]
[426577219,1782622247000,-151.0,0.00031507,7]
[426577218,1782622247000,-151.0,0.00031507,7]
[426577216,1782622247000,-1351.116938,0.00031507,7]
[426577221,1782622247000,-261.469828,0.00031507,7]
[426577224,1782622247000,-189.449642,0.00031507,7]
[426577222,1782622247000,-189.449642,0.00031507,7]
[426577213,1782622247000,-1351.116938,0.00031507,7]
[426577223,1782622247000,-189.449642,0.00031507,7]
[426577226,1782622247000,-151.0,0.00031507,7]
[426577225,1782622247000,-189.449642,0.00031507,7]
[426577227,1782622247000,-151.0,0.00031507,7]
[426577220,1782622247000,-151.0,0.00031507,7]
[426577211,1782622247000,-151.0,0.00031507,7]
[426577209,1782622247000,-157.69328,0.00031507,7]
[426577210,1782622247000,-263.790379,0.00031507,7]
[426577191,1782622247000,-151.0,0.00031507,7]
[426577192,1782622247000,-157.008889,0.00031507,7]
[426577193,1782622247000,-151.0,0.00031507,7]
[426577196,1782622247000,-189.610389,0.00031507,7]
[426577197,1782622247000,-151.0,0.00031507,7]
[426577199,1782622247000,-167.45728,0.00031507,7]
[426577198,1782622247000,-151.0,0.00031507,7]
[426577200,1782622247000,-151.0,0.00031507,7]
[426577204,1782622247000,-157.69328,0.00031507,7]
[426577203,1782622247000,-151.0,0.00031507,7]
[426577202,1782622247000,-151.0,0.00031507,7]
[426577201,1782622247000,-151.0,0.00031507,7]
[426577205,1782622247000,-157.69328,0.00031507,7]
[426577207,1782622247000,-151.0,0.00031507,7]
[426577208,1782622247000,-151.0,0.00031507,7]
[426577206,1782622247000,-157.69328,0.00031507,7]
[426577229,1782622247000,-151.0,0.00031507,7]
[426577212,1782622247000,-151.0,0.00031507,7]
[426577228,1782622247000,-151.0,0.00031507,7]
[426577232,1782622247000,-236.539437,0.00031507,7]
[426577231,1782622247000,-151.0,0.00031507,7]
[426577254,1782622247000,-151.0,0.00031507,7]
[426577259,1782622247000,-151.0,0.00031507,7]
[426577258,1782622247000,-151.0,0.00031507,7]
[426577255,1782622247000,-151.0,0.00031507,7]
[426577256,1782622247000,-151.0,0.00031507,7]
[426577257,1782622247000,-158.948642,0.00031507,7]
[426577260,1782622247000,-457.77777,0.00031507,7]
[426577261,1782622247000,-457.77777,0.00031507,7]
[426577262,1782622247000,-457.77777,0.00031507,7]
[426577264,1782622247000,-151.0,0.00031507,7]
[426577263,1782622247000,-457.77777,0.00031507,7]
[426577265,1782622247000,-302.58828,0.00031507,7]
[426577266,1782622247000,-151.0,0.00031507,7]
[426577267,1782622247000,-151.0,0.00031507,7]
[426577195,1782622247000,-155.330496,0.00031507,7]
[426577253,1782622247000,-151.0,0.00031507,7]
[426577252,1782622247000,-151.0,0.00031507,7]
[426577251,1782622247000,-151.0,0.00031507,7]
[426577250,1782622247000,-151.0,0.00031507,7]
[426577233,1782622247000,-151.0,0.00031507,7]
[426577235,1782622247000,-151.0,0.00031507,7]
[426577234,1782622247000,-236.539437,0.00031507,7]
[426577236,1782622247000,-195.72195,0.00031507,7]
[426577237,1782622247000,-151.0,0.00031507,7]
[426577239,1782622247000,-195.72195,0.00031507,7]
[426577241,1782622247000,-195.72195,0.00031507,7]
[426577230,1782622247000,-151.0,0.00031507,7]
[426577240,1782622247000,-236.539437,0.00031507,7]
[426577246,1782622247000,-151.0,0.00031507,7]
[426577242,1782622247000,-195.72195,0.00031507,7]
[426577247,1782622247000,-203.120751,0.00031507,7]
[426577244,1782622247000,-151.0,0.00031507,7]
[426577245,1782622247000,-151.0,0.00031507,7]
[426577248,1782622247000,-151.0,0.00031507,7]
[426577249,1782622247000,-202.050439,0.00031507,7]
[426577243,1782622247000,-151.0,0.00031507,7]
[426577238,1782622247000,-236.539437,0.00031507,7]